[Event "Late-Titled-Tuesday-Blitz-March-26-2024"]
[Site "Chess.com"]
[Date "2024.03.26"]
[Round "1"]
[White "katharinareinecke"]
[Black "zverr1"]
[Result "0-1"]
[WhiteElo "1991"]
[BlackElo "2547"]
[TimeControl "180+1"]
[EndTime "14:07:50 PDT"]
[Termination "zverr1 won on time"]

1. e4 {[%clk 0:02:56.2]} 1... c5 {[%clk 0:02:55.8]} 2. Nf3 {[%clk 0:02:55.1]}
2... Nc6 {[%clk 0:02:55.1]} 3. Bb5 {[%clk 0:02:53.1]} 3... h5 {[%clk 0:02:54.2]}
4. Bxc6 {[%clk 0:02:42.7]} 4... dxc6 {[%clk 0:02:53.9]} 5. d3 {[%clk 0:02:39.9]}
5... h4 {[%clk 0:02:52.3]} 6. h3 {[%clk 0:02:36.5]} 6... f6 {[%clk 0:02:52.2]}
7. Be3 {[%clk 0:02:34.8]} 7... e5 {[%clk 0:02:52.1]} 8. Nbd2 {[%clk 0:02:23.1]}
8... Be6 {[%clk 0:02:40.9]} 9. Qe2 {[%clk 0:01:56]} 9... b6 {[%clk 0:02:37.7]}
10. a4 {[%clk 0:01:49.5]} 10... a5 {[%clk 0:02:35.7]} 11. Nc4 {[%clk 0:01:35.6]}
11... Qc7 {[%clk 0:02:31.8]} 12. O-O {[%clk 0:01:18.7]} 12... g5 {[%clk
0:02:28.7]} 13. Bxg5 {[%clk 0:01:07.7]} 13... fxg5 {[%clk 0:01:29.5]} 14. Nfxe5
{[%clk 0:00:58]} 14... O-O-O {[%clk 0:01:19.3]} 15. Ng4 {[%clk 0:00:48.5]} 15...
Bg7 {[%clk 0:01:15.6]} 16. c3 {[%clk 0:00:45.9]} 16... Nf6 {[%clk 0:01:13.1]}
17. e5 {[%clk 0:00:43.9]} 17... Nxg4 {[%clk 0:01:04.9]} 18. hxg4 {[%clk
0:00:41.3]} 18... Bxc4 {[%clk 0:01:05.2]} 19. dxc4 {[%clk 0:00:39.7]} 19... Qxe5
{[%clk 0:01:05.3]} 20. Qf3 {[%clk 0:00:27.4]} 20... Kc7 {[%clk 0:00:50.2]} 21.
Rfe1 {[%clk 0:00:24.2]} 21... Qf4 {[%clk 0:00:48.8]} 22. Qe2 {[%clk 0:00:21.2]}
22... h3 {[%clk 0:00:39.6]} 23. g3 {[%clk 0:00:20.3]} 23... h2+ {[%clk
0:00:39.7]} 24. Kh1 {[%clk 0:00:20]} 24... Qf6 {[%clk 0:00:37.6]} 25. Rac1
{[%clk 0:00:19.5]} 25... Rhf8 {[%clk 0:00:35.8]} 26. Qe7+ {[%clk 0:00:16.2]}
26... Rd7 {[%clk 0:00:32.9]} 27. Qxf6 {[%clk 0:00:15.1]} 27... Rxf6 {[%clk
0:00:33.8]} 28. Re2 {[%clk 0:00:14.9]} 28... Rh6 {[%clk 0:00:26.2]} 29. Rce1
{[%clk 0:00:14.1]} 29... b5 {[%clk 0:00:19.4]} 30. axb5 {[%clk 0:00:13.5]} 30...
cxb5 {[%clk 0:00:19.6]} 31. cxb5 {[%clk 0:00:13.8]} 31... Kb6 {[%clk 0:00:20.4]}
32. f4 {[%clk 0:00:13.4]} 32... Kxb5 {[%clk 0:00:18.5]} 33. f5 {[%clk
0:00:11.4]} 33... Rhd6 {[%clk 0:00:16.9]} 34. Re6 {[%clk 0:00:09]} 34... Kc4
{[%clk 0:00:16.6]} 35. Rf1 {[%clk 0:00:02.6]} 35... Bf6 {[%clk 0:00:15.3]} 36.
Kxh2 {[%clk 0:00:02.2]} 36... Kb3 {[%clk 0:00:15.9]} 37. Re2 {[%clk 0:00:01]}
37... Rh7+ {[%clk 0:00:15.7]} 38. Kg2 {[%clk 0:00:01.5]} 38... Rh6 {[%clk
0:00:12.1]} 39. Rfe1 {[%clk 0:00:02.1]} 39... Rd7 {[%clk 0:00:11.8]} 40. Re6
{[%clk 0:00:02.4]} 40... Rdh7 {[%clk 0:00:11.8]} 41. Rb6+ {[%clk 0:00:02.6]}
41... Kc4 {[%clk 0:00:12.4]} 42. Ra6 {[%clk 0:00:02.3]} 42... Rh2+ {[%clk
0:00:12.2]} 43. Kf3 {[%clk 0:00:02.8]} 43... Rxb2 {[%clk 0:00:11.1]} 44. Rxa5
{[%clk 0:00:02.2]} 44... Bxc3 {[%clk 0:00:09.3]} 45. Ra4+ {[%clk 0:00:02.6]}
45... Bb4 {[%clk 0:00:09.3]} 46. Ra6 {[%clk 0:00:01.8]} 46... Rhh2 {[%clk
0:00:08.6]} 0-1

[Event "Late-Titled-Tuesday-Blitz-March-26-2024"]
[Site "Chess.com"]
[Date "2024.03.26"]
[Round "1"]
[White "dawid498"]
[Black "Kombinator01"]
[Result "1-0"]
[WhiteElo "2714"]
[BlackElo "2395"]
[TimeControl "180+1"]
[EndTime "14:07:55 PDT"]
[Termination "dawid498 won on time"]

1. e4 {[%clk 0:03:00.9]} 1... e5 {[%clk 0:02:59.5]} 2. Nc3 {[%clk 0:03:00.5]}
2... Nf6 {[%clk 0:02:57.4]} 3. g3 {[%clk 0:03:01.1]} 3... g6 {[%clk 0:02:55.1]}
4. Bg2 {[%clk 0:03:01.1]} 4... Bg7 {[%clk 0:02:55.7]} 5. Nge2 {[%clk 0:02:51.3]}
5... O-O {[%clk 0:02:55.3]} 6. O-O {[%clk 0:02:52]} 6... d6 {[%clk 0:02:55.5]}
7. h3 {[%clk 0:02:48.3]} 7... Nc6 {[%clk 0:02:46.3]} 8. d3 {[%clk 0:02:47.8]}
8... h6 {[%clk 0:02:45.6]} 9. f4 {[%clk 0:02:43.9]} 9... Kh7 {[%clk 0:02:45.3]}
10. Kh2 {[%clk 0:02:43.6]} 10... Nd4 {[%clk 0:02:35.3]} 11. Nxd4 {[%clk
0:02:07]} 11... exd4 {[%clk 0:02:36.2]} 12. Ne2 {[%clk 0:02:07.7]} 12... c5
{[%clk 0:02:34.6]} 13. c3 {[%clk 0:02:05.3]} 13... dxc3 {[%clk 0:02:33]} 14.
bxc3 {[%clk 0:02:05.9]} 14... Rb8 {[%clk 0:02:23.8]} 15. a4 {[%clk 0:02:03.1]}
15... a6 {[%clk 0:02:23]} 16. a5 {[%clk 0:02:00.2]} 16... Bd7 {[%clk 0:02:18.9]}
17. Be3 {[%clk 0:01:53.9]} 17... Bc6 {[%clk 0:02:17.5]} 18. f5 {[%clk
0:01:30.5]} 18... c4 {[%clk 0:02:14]} 19. Nd4 {[%clk 0:01:19.9]} 19... cxd3
{[%clk 0:02:07.2]} 20. fxg6+ {[%clk 0:01:20.3]} 20... fxg6 {[%clk 0:02:06.4]}
21. Ne6 {[%clk 0:01:16.1]} 21... Qe7 {[%clk 0:02:06.1]} 22. Nxf8+ {[%clk
0:01:16.6]} 22... Rxf8 {[%clk 0:02:06.1]} 23. Qxd3 {[%clk 0:01:16.2]} 23... Re8
{[%clk 0:02:02.6]} 24. Bd4 {[%clk 0:01:12.3]} 24... Qe6 {[%clk 0:01:53.2]} 25.
c4 {[%clk 0:00:56.2]} 25... Re7 {[%clk 0:01:37.8]} 26. Rae1 {[%clk 0:00:56.2]}
26... Nd7 {[%clk 0:01:31.4]} 27. Bxg7 {[%clk 0:00:55.7]} 27... Kxg7 {[%clk
0:01:32.3]} 28. Qd4+ {[%clk 0:00:49.6]} 28... Ne5 {[%clk 0:01:32.1]} 29. Rd1
{[%clk 0:00:47.6]} 29... Rd7 {[%clk 0:01:32.5]} 30. c5 {[%clk 0:00:45.1]} 30...
dxc5 {[%clk 0:01:25.4]} 31. Qxc5 {[%clk 0:00:46]} 31... h5 {[%clk 0:01:14.3]}
32. Qf8+ {[%clk 0:00:44.3]} 32... Kh7 {[%clk 0:01:13.8]} 33. Rxd7+ {[%clk
0:00:42.2]} 33... Qxd7 {[%clk 0:01:13.9]} 34. Qf6 {[%clk 0:00:35.5]} 34... Qc7
{[%clk 0:01:13.3]} 35. Qe6 {[%clk 0:00:30.8]} 35... h4 {[%clk 0:01:12.4]} 36.
Rf8 {[%clk 0:00:19.9]} 36... hxg3+ {[%clk 0:01:12.3]} 37. Kh1 {[%clk 0:00:19.9]}
37... Qg7 {[%clk 0:01:10.7]} 38. Qf6 {[%clk 0:00:15.3]} 38... Qxf6 {[%clk
0:01:03.1]} 39. Rxf6 {[%clk 0:00:16.2]} 39... Nc4 {[%clk 0:01:03.8]} 40. e5
{[%clk 0:00:11.4]} 40... Kg7 {[%clk 0:01:03.2]} 41. Bxc6 {[%clk 0:00:11.1]}
41... Nxe5 {[%clk 0:00:58]} 42. Rd6 {[%clk 0:00:04.7]} 42... Nxc6 {[%clk
0:00:58.4]} 43. Rd7+ {[%clk 0:00:04.9]} 43... Kf6 {[%clk 0:00:58.8]} 44. Rxb7
{[%clk 0:00:05.7]} 44... Nxa5 {[%clk 0:00:59]} 45. Rb6+ {[%clk 0:00:06.3]} 45...
Kf5 {[%clk 0:00:57.6]} 46. Kg2 {[%clk 0:00:06.8]} 46... Nc4 {[%clk 0:00:57.6]}
47. Rxa6 {[%clk 0:00:06.2]} 47... Nd6 {[%clk 0:00:57.2]} 48. Rxd6 {[%clk
0:00:04.5]} 1-0

[Event "Late-Titled-Tuesday-Blitz-March-26-2024"]
[Site "Chess.com"]
[Date "2024.03.26"]
[Round "1"]
[White "Bkmzzzzz"]
[Black "Mikhail_Golubev"]
[Result "1-0"]
[WhiteElo "2395"]
[BlackElo "2672"]
[TimeControl "180+1"]
[EndTime "14:07:57 PDT"]
[Termination "Bkmzzzzz won by checkmate"]

1. e4 {[%clk 0:02:59.5]} 1... c5 {[%clk 0:02:59.4]} 2. Nf3 {[%clk 0:02:57.7]}
2... Nc6 {[%clk 0:02:59.4]} 3. Bb5 {[%clk 0:02:56.7]} 3... d6 {[%clk 0:02:59]}
4. d4 {[%clk 0:02:55.8]} 4... cxd4 {[%clk 0:02:57.3]} 5. Qxd4 {[%clk 0:02:56.7]}
5... Bd7 {[%clk 0:02:52.3]} 6. Bxc6 {[%clk 0:02:56]} 6... bxc6 {[%clk
0:02:52.5]} 7. c4 {[%clk 0:02:55]} 7... Qb6 {[%clk 0:02:47.5]} 8. Qd3 {[%clk
0:02:50.8]} 8... g6 {[%clk 0:02:44.9]} 9. O-O {[%clk 0:02:49.2]} 9... Bg7 {[%clk
0:02:45]} 10. Nc3 {[%clk 0:02:49.8]} 10... Nf6 {[%clk 0:02:41.2]} 11. b3 {[%clk
0:02:43.4]} 11... O-O {[%clk 0:02:06.9]} 12. h3 {[%clk 0:02:37]} 12... Qa5
{[%clk 0:01:21]} 13. Bd2 {[%clk 0:02:31.2]} 13... Qh5 {[%clk 0:01:20.1]} 14.
Rad1 {[%clk 0:02:08.9]} 14... h6 {[%clk 0:01:13]} 15. Ne2 {[%clk 0:01:59.8]}
15... g5 {[%clk 0:01:05.7]} 16. Nfd4 {[%clk 0:01:07]} 16... g4 {[%clk
0:00:55.8]} 17. Ng3 {[%clk 0:01:06.4]} 17... Qg6 {[%clk 0:00:34.9]} 18. Ndf5
{[%clk 0:00:57.8]} 18... Rfe8 {[%clk 0:00:29.2]} 19. Nxg7 {[%clk 0:00:54.9]}
19... Kxg7 {[%clk 0:00:23.1]} 20. h4 {[%clk 0:00:42.2]} 20... Nh5 {[%clk
0:00:17.8]} 21. Nf5+ {[%clk 0:00:36.6]} 21... Bxf5 {[%clk 0:00:17.8]} 22. exf5
{[%clk 0:00:37.5]} 22... Qh7 {[%clk 0:00:18]} 23. Qe4 {[%clk 0:00:25.7]} 23...
Nf6 {[%clk 0:00:14.1]} 24. Bc3 {[%clk 0:00:26.1]} 24... Kf8 {[%clk 0:00:12.4]}
25. Bxf6 {[%clk 0:00:25.1]} 25... exf6 {[%clk 0:00:13.1]} 26. Qxc6 {[%clk
0:00:24]} 26... Qxf5 {[%clk 0:00:10.9]} 27. Rxd6 {[%clk 0:00:23.8]} 27... Kg7
{[%clk 0:00:11.1]} 28. Rd5 {[%clk 0:00:20.5]} 28... Qf4 {[%clk 0:00:09.4]} 29.
Qd6 {[%clk 0:00:19.6]} 29... Re5 {[%clk 0:00:08.4]} 30. Rxe5 {[%clk 0:00:18.4]}
30... fxe5 {[%clk 0:00:08.6]} 31. Qd5 {[%clk 0:00:18.1]} 31... g3 {[%clk
0:00:07.6]} 32. fxg3 {[%clk 0:00:17]} 32... Qe3+ {[%clk 0:00:07.6]} 33. Kh2
{[%clk 0:00:16.6]} 33... Rf8 {[%clk 0:00:08.5]} 34. Qf3 {[%clk 0:00:16]} 34...
Qb6 {[%clk 0:00:06]} 35. Re1 {[%clk 0:00:15.2]} 35... Qe6 {[%clk 0:00:05.7]} 36.
Qe4 {[%clk 0:00:14.6]} 36... f5 {[%clk 0:00:05.3]} 37. Qb7+ {[%clk 0:00:14.1]}
37... Rf7 {[%clk 0:00:04.9]} 38. Qf3 {[%clk 0:00:12.2]} 38... e4 {[%clk
0:00:04.3]} 39. Qf4 {[%clk 0:00:12.8]} 39... Qf6 {[%clk 0:00:04.3]} 40. Rd1
{[%clk 0:00:13]} 40... Re7 {[%clk 0:00:04.5]} 41. Rd6 {[%clk 0:00:10.8]} 41...
Re6 {[%clk 0:00:04.9]} 42. Rxe6 {[%clk 0:00:10.4]} 42... Qxe6 {[%clk 0:00:04.9]}
43. Qe3 {[%clk 0:00:10]} 43... Qd6 {[%clk 0:00:03.6]} 44. Kg1 {[%clk 0:00:09.1]}
44... a6 {[%clk 0:00:02.8]} 45. Kh2 {[%clk 0:00:09]} 45... Kg6 {[%clk 0:00:03]}
46. a4 {[%clk 0:00:08.8]} 46... Qd3 {[%clk 0:00:02.3]} 47. Qb6+ {[%clk
0:00:08.2]} 47... Kh5 {[%clk 0:00:02.6]} 48. Qf6 {[%clk 0:00:05]} 48... e3
{[%clk 0:00:02.3]} 49. Qf7+ {[%clk 0:00:05.3]} 49... Kg4 {[%clk 0:00:01.2]} 50.
Qg6# {[%clk 0:00:05.5]} 1-0

[Event "Late-Titled-Tuesday-Blitz-March-26-2024"]
[Site "Chess.com"]
[Date "2024.03.26"]
[Round "1"]
[White "Binary010"]
[Black "Levanzovsky"]
[Result "1-0"]
[WhiteElo "2778"]
[BlackElo "2420"]
[TimeControl "180+1"]
[EndTime "14:07:59 PDT"]
[Termination "Binary010 won on time"]

1. e4 {[%clk 0:03:00.9]} 1... g6 {[%clk 0:02:58.3]} 2. d4 {[%clk 0:03:00.9]}
2... Nf6 {[%clk 0:02:58.8]} 3. e5 {[%clk 0:02:56.7]} 3... Nh5 {[%clk 0:02:57.2]}
4. Be2 {[%clk 0:02:49.4]} 4... d6 {[%clk 0:02:56.9]} 5. Bxh5 {[%clk 0:02:34.3]}
5... gxh5 {[%clk 0:02:57.8]} 6. Qxh5 {[%clk 0:02:32.8]} 6... dxe5 {[%clk
0:02:57.9]} 7. dxe5 {[%clk 0:02:22]} 7... Rg8 {[%clk 0:02:51.2]} 8. Nf3 {[%clk
0:02:16.9]} 8... Rxg2 {[%clk 0:02:47.2]} 9. Ng5 {[%clk 0:01:36.1]} 9... Qd5
{[%clk 0:01:58]} 10. Nc3 {[%clk 0:01:35.5]} 10... Rxg5 {[%clk 0:01:34.5]} 11.
Nxd5 {[%clk 0:01:35.4]} 11... Rxh5 {[%clk 0:01:34.7]} 12. Nxc7+ {[%clk
0:01:35.7]} 12... Kd8 {[%clk 0:01:34.6]} 13. Nxa8 {[%clk 0:01:36.2]} 13... b6
{[%clk 0:00:49.8]} 14. Bf4 {[%clk 0:01:09.1]} 14... Bb7 {[%clk 0:00:38.1]} 15.
O-O-O+ {[%clk 0:01:05.3]} 15... Kc8 {[%clk 0:00:16.9]} 16. Rhg1 {[%clk
0:01:01.8]} 16... Bxa8 {[%clk 0:00:12.3]} 17. Rg8 {[%clk 0:00:45.2]} 17... Nd7
{[%clk 0:00:11.9]} 18. Rxd7 {[%clk 0:00:45.5]} 18... Kxd7 {[%clk 0:00:11.8]} 19.
Rxf8 {[%clk 0:00:46.2]} 19... Bd5 {[%clk 0:00:11.2]} 20. b3 {[%clk 0:00:43.6]}
20... Rf5 {[%clk 0:00:07.3]} 21. Bg3 {[%clk 0:00:42]} 21... h5 {[%clk
0:00:07.1]} 22. c4 {[%clk 0:00:39.5]} 22... Be6 {[%clk 0:00:07.4]} 23. Rh8
{[%clk 0:00:37.1]} 23... Kc6 {[%clk 0:00:05.4]} 24. Kd2 {[%clk 0:00:35.4]} 24...
Rg5 {[%clk 0:00:04.3]} 25. Ke3 {[%clk 0:00:31.3]} 25... a6 {[%clk 0:00:04.1]}
26. h4 {[%clk 0:00:27.3]} 26... Rf5 {[%clk 0:00:03.6]} 27. Rh7 {[%clk
0:00:20.1]} 27... b5 {[%clk 0:00:03.8]} 28. cxb5+ {[%clk 0:00:19.4]} 28... axb5
{[%clk 0:00:04.7]} 29. Ke4 {[%clk 0:00:19.8]} 29... Kd7 {[%clk 0:00:03.1]} 30.
f4 {[%clk 0:00:17.4]} 30... Kc6 {[%clk 0:00:03.1]} 31. Be1 {[%clk 0:00:14.4]}
31... Bc8 {[%clk 0:00:03.2]} 32. Bb4 {[%clk 0:00:13.9]} 32... e6 {[%clk
0:00:02.4]} 33. Bd2 {[%clk 0:00:10.6]} 33... Bb7 {[%clk 0:00:02.9]} 34. Kd4
{[%clk 0:00:11]} 34... Kb6 {[%clk 0:00:02.7]} 35. a4 {[%clk 0:00:10.3]} 35...
bxa4 {[%clk 0:00:02]} 36. bxa4 {[%clk 0:00:11.2]} 36... f6 {[%clk 0:00:02.7]}
37. a5+ {[%clk 0:00:11.8]} 37... Ka6 {[%clk 0:00:03.1]} 38. exf6 {[%clk
0:00:10.3]} 38... Rxf6 {[%clk 0:00:03.6]} 39. Rxh5 {[%clk 0:00:10.1]} 39... Rf7
{[%clk 0:00:02.6]} 40. Rc5 {[%clk 0:00:08.7]} 40... Rd7+ {[%clk 0:00:02.7]} 41.
Ke3 {[%clk 0:00:09.4]} 41... Rg7 {[%clk 0:00:02.1]} 42. h5 {[%clk 0:00:09.3]}
42... Rg3+ {[%clk 0:00:02.3]} 43. Kd4 {[%clk 0:00:09.6]} 43... Rh3 {[%clk
0:00:02.2]} 44. Bb4 {[%clk 0:00:08.1]} 44... Rh4 {[%clk 0:00:02.1]} 45. Ke3
{[%clk 0:00:08]} 45... Rh3+ {[%clk 0:00:02.4]} 46. Ke2 {[%clk 0:00:05.2]} 46...
Rh2+ {[%clk 0:00:02.3]} 47. Ke1 {[%clk 0:00:04.1]} 47... Rh1+ {[%clk 0:00:02.3]}
48. Kf2 {[%clk 0:00:04.6]} 48... Rh2+ {[%clk 0:00:02.7]} 49. Kg3 {[%clk
0:00:04.9]} 49... Rg2+ {[%clk 0:00:03.1]} 50. Kh4 {[%clk 0:00:04.9]} 50... Bf3
{[%clk 0:00:03.8]} 51. Rg5 {[%clk 0:00:04.6]} 51... Rh2+ {[%clk 0:00:03]} 52.
Kg3 {[%clk 0:00:04.9]} 1-0

[Event "Late-Titled-Tuesday-Blitz-March-26-2024"]
[Site "Chess.com"]
[Date "2024.03.26"]
[Round "1"]
[White "ploxoi"]
[Black "ThinkingSquares"]
[Result "0-1"]
[WhiteElo "2430"]
[BlackElo "2806"]
[TimeControl "180+1"]
[EndTime "14:08:01 PDT"]
[Termination "ThinkingSquares won on time"]

1. d4 {[%clk 0:03:00.9]} 1... Nf6 {[%clk 0:02:59.5]} 2. Nf3 {[%clk 0:03:00.9]}
2... e6 {[%clk 0:02:59.3]} 3. c4 {[%clk 0:03:01.5]} 3... b6 {[%clk 0:02:58.8]}
4. g3 {[%clk 0:03:02]} 4... Ba6 {[%clk 0:02:58.1]} 5. Bg2 {[%clk 0:03:02.8]}
5... Bxc4 {[%clk 0:02:58]} 6. O-O {[%clk 0:03:01.9]} 6... Bd5 {[%clk 0:02:56.6]}
7. Nc3 {[%clk 0:03:02]} 7... Bb7 {[%clk 0:02:57.2]} 8. Bg5 {[%clk 0:03:00.4]}
8... Be7 {[%clk 0:02:55.4]} 9. Re1 {[%clk 0:02:59.4]} 9... h6 {[%clk 0:02:53.3]}
10. Bf4 {[%clk 0:02:58.5]} 10... O-O {[%clk 0:02:28.9]} 11. e4 {[%clk
0:02:55.2]} 11... d6 {[%clk 0:02:23.1]} 12. Qc2 {[%clk 0:02:49.1]} 12... Nbd7
{[%clk 0:02:21.6]} 13. Rad1 {[%clk 0:02:36.6]} 13... a6 {[%clk 0:02:19.2]} 14.
h3 {[%clk 0:02:34.8]} 14... b5 {[%clk 0:02:16.1]} 15. a3 {[%clk 0:02:34.5]}
15... Rc8 {[%clk 0:02:13.2]} 16. Qb3 {[%clk 0:02:30.9]} 16... c5 {[%clk
0:02:12.5]} 17. dxc5 {[%clk 0:02:26]} 17... Nxc5 {[%clk 0:02:12.3]} 18. Qb4
{[%clk 0:02:25.6]} 18... d5 {[%clk 0:01:51.8]} 19. Qd4 {[%clk 0:02:06.9]} 19...
Nfxe4 {[%clk 0:01:49]} 20. Nxe4 {[%clk 0:02:05.2]} 20... dxe4 {[%clk 0:01:43.7]}
21. Ne5 {[%clk 0:02:02]} 21... Qxd4 {[%clk 0:01:41]} 22. Rxd4 {[%clk 0:02:02]}
22... g5 {[%clk 0:01:34.7]} 23. Be3 {[%clk 0:01:58]} 23... Bf6 {[%clk
0:01:35.2]} 24. Rd7 {[%clk 0:01:36.7]} 24... Bxe5 {[%clk 0:01:34.4]} 25. Bxc5
{[%clk 0:01:35.5]} 25... Rxc5 {[%clk 0:01:20.2]} 26. Rxb7 {[%clk 0:01:35.4]}
26... Bxb2 {[%clk 0:01:18.4]} 27. a4 {[%clk 0:01:32.5]} 27... Bc3 {[%clk
0:01:01.4]} 28. Rxe4 {[%clk 0:01:32.3]} 28... bxa4 {[%clk 0:00:57.3]} 29. Rxa4
{[%clk 0:01:31.1]} 29... a5 {[%clk 0:00:57.7]} 30. Be4 {[%clk 0:01:19.3]} 30...
Rd8 {[%clk 0:00:56.4]} 31. g4 {[%clk 0:01:18.7]} 31... Rd2 {[%clk 0:00:52.6]}
32. Rb8+ {[%clk 0:00:43.7]} 32... Kg7 {[%clk 0:00:52.5]} 33. Rb1 {[%clk
0:00:32.1]} 33... Re5 {[%clk 0:00:47]} 34. Bf3 {[%clk 0:00:20.4]} 34... Bb4
{[%clk 0:00:39.9]} 35. Rf1 {[%clk 0:00:17.7]} 35... Rc5 {[%clk 0:00:37.8]} 36.
Be4 {[%clk 0:00:16.1]} 36... Rc4 {[%clk 0:00:37.7]} 37. Bb1 {[%clk 0:00:14.5]}
37... Rc3 {[%clk 0:00:36.8]} 38. Kg2 {[%clk 0:00:11.2]} 38... Ra3 {[%clk
0:00:36.7]} 39. Rxa3 {[%clk 0:00:10.7]} 39... Bxa3 {[%clk 0:00:37.6]} 40. Be4
{[%clk 0:00:11]} 40... Bc5 {[%clk 0:00:38]} 41. Ra1 {[%clk 0:00:10.3]} 41...
Bxf2 {[%clk 0:00:32.8]} 42. Kf3 {[%clk 0:00:09.7]} 42... Bb6 {[%clk 0:00:31.6]}
43. Rb1 {[%clk 0:00:09.6]} 43... Rd6 {[%clk 0:00:29.7]} 44. Rb5 {[%clk
0:00:09.3]} 44... a4 {[%clk 0:00:28.7]} 45. Rb4 {[%clk 0:00:04.7]} 45... a3
{[%clk 0:00:27.2]} 46. Ra4 {[%clk 0:00:05.1]} 46... Bc5 {[%clk 0:00:27.2]} 47.
Ke2 {[%clk 0:00:05.4]} 47... Rd4 {[%clk 0:00:25.7]} 48. Rxd4 {[%clk 0:00:03.5]}
48... Bxd4 {[%clk 0:00:26.6]} 49. Bb1 {[%clk 0:00:03.6]} 49... Kf6 {[%clk
0:00:27.1]} 50. Kd3 {[%clk 0:00:04.2]} 50... Bc5 {[%clk 0:00:26.8]} 51. Ke4
{[%clk 0:00:04.5]} 51... Ke7 {[%clk 0:00:25.3]} 52. Ba2 {[%clk 0:00:05.1]} 52...
Kd6 {[%clk 0:00:23.8]} 53. Bb3 {[%clk 0:00:04.5]} 53... Bg1 {[%clk 0:00:23.4]}
54. Ba2 {[%clk 0:00:03.4]} 54... Kc5 {[%clk 0:00:22.5]} 55. Ke5 {[%clk
0:00:03.3]} 55... Bd4+ {[%clk 0:00:22.4]} 56. Ke4 {[%clk 0:00:03.1]} 56... Bg7
{[%clk 0:00:20.7]} 57. Bb3 {[%clk 0:00:01.7]} 57... Kb4 {[%clk 0:00:21]} 58. Ba2
{[%clk 0:00:02.3]} 58... Kc3 {[%clk 0:00:21.4]} 0-1

[Event "Late-Titled-Tuesday-Blitz-March-26-2024"]
[Site "Chess.com"]
[Date "2024.03.26"]
[Round "1"]
[White "Gravity_Chess"]
[Black "WindWhistler11"]
[Result "1-0"]
[WhiteElo "2835"]
[BlackElo "2444"]
[TimeControl "180+1"]
[EndTime "14:08:02 PDT"]
[Termination "Gravity_Chess won by checkmate"]

1. e4 {[%clk 0:02:59.9]} 1... e6 {[%clk 0:03:00]} 2. g3 {[%clk 0:02:57.8]} 2...
d5 {[%clk 0:03:00]} 3. Bg2 {[%clk 0:02:54]} 3... Nf6 {[%clk 0:02:59.6]} 4. Nc3
{[%clk 0:02:49.2]} 4... Be7 {[%clk 0:02:58.2]} 5. d3 {[%clk 0:02:48.7]} 5... a6
{[%clk 0:02:51.4]} 6. Nge2 {[%clk 0:02:48.5]} 6... b5 {[%clk 0:02:51]} 7. a3
{[%clk 0:02:43.4]} 7... Bb7 {[%clk 0:02:50.5]} 8. O-O {[%clk 0:02:43.1]} 8...
O-O {[%clk 0:02:41.6]} 9. e5 {[%clk 0:02:21.6]} 9... Nfd7 {[%clk 0:02:41.2]} 10.
f4 {[%clk 0:02:21.9]} 10... c5 {[%clk 0:02:40.5]} 11. d4 {[%clk 0:02:22.4]}
11... Nc6 {[%clk 0:02:38.6]} 12. Be3 {[%clk 0:02:22.6]} 12... Nb6 {[%clk
0:02:28.4]} 13. b3 {[%clk 0:02:21.2]} 13... cxd4 {[%clk 0:02:20.5]} 14. Nxd4
{[%clk 0:02:21.3]} 14... Rc8 {[%clk 0:02:15.6]} 15. Nce2 {[%clk 0:02:21.4]}
15... Nd7 {[%clk 0:02:13.1]} 16. Kh1 {[%clk 0:02:08.3]} 16... Nc5 {[%clk
0:02:05.2]} 17. f5 {[%clk 0:02:07.5]} 17... Nxe5 {[%clk 0:02:01.2]} 18. fxe6
{[%clk 0:02:07.8]} 18... Nxe6 {[%clk 0:02:00.2]} 19. Nxe6 {[%clk 0:02:08.3]}
19... fxe6 {[%clk 0:01:58.8]} 20. Nd4 {[%clk 0:02:08.9]} 20... Qd6 {[%clk
0:01:38.5]} 21. Bf4 {[%clk 0:02:06.4]} 21... Bf6 {[%clk 0:01:36.4]} 22. Re1
{[%clk 0:02:05.4]} 22... g5 {[%clk 0:01:34.5]} 23. Bd2 {[%clk 0:01:33.6]} 23...
Rfe8 {[%clk 0:01:20.2]} 24. Qe2 {[%clk 0:00:52.7]} 24... Nf7 {[%clk 0:01:18.5]}
25. c3 {[%clk 0:00:52.1]} 25... Re7 {[%clk 0:01:11.5]} 26. Rf1 {[%clk
0:00:50.4]} 26... Bg7 {[%clk 0:01:05.1]} 27. Rae1 {[%clk 0:00:50.4]} 27... Rce8
{[%clk 0:01:03.7]} 28. b4 {[%clk 0:00:42.1]} 28... Bxd4 {[%clk 0:01:02.3]} 29.
cxd4 {[%clk 0:00:42.1]} 29... e5 {[%clk 0:01:03.2]} 30. Qh5 {[%clk 0:00:34.1]}
30... Qg6 {[%clk 0:00:57.5]} 31. Qxg6+ {[%clk 0:00:31]} 31... hxg6 {[%clk
0:00:58.1]} 32. dxe5 {[%clk 0:00:31.9]} 32... Rxe5 {[%clk 0:00:54.8]} 33. Rxe5
{[%clk 0:00:16.7]} 33... Rxe5 {[%clk 0:00:55.7]} 34. Rc1 {[%clk 0:00:17.4]}
34... Re2 {[%clk 0:00:45.6]} 35. Be1 {[%clk 0:00:16.4]} 35... Nd6 {[%clk
0:00:43]} 36. Bf3 {[%clk 0:00:14.2]} 36... Re3 {[%clk 0:00:40.8]} 37. Bg2 {[%clk
0:00:14.6]} 37... Nc4 {[%clk 0:00:40.3]} 38. Bf2 {[%clk 0:00:14.7]} 38... Rxa3
{[%clk 0:00:38.8]} 39. Re1 {[%clk 0:00:14.1]} 39... Kf7 {[%clk 0:00:38.4]} 40.
Bc5 {[%clk 0:00:14.2]} 40... Bc8 {[%clk 0:00:29.5]} 41. Bxd5+ {[%clk 0:00:14.2]}
41... Kf6 {[%clk 0:00:30]} 42. Bd4+ {[%clk 0:00:14.7]} 42... Kf5 {[%clk
0:00:28.5]} 43. h3 {[%clk 0:00:12.4]} 43... g4 {[%clk 0:00:27.9]} 44. Rf1+
{[%clk 0:00:06.7]} 44... Kg5 {[%clk 0:00:25.6]} 45. h4+ {[%clk 0:00:07.1]} 45...
Kh6 {[%clk 0:00:20.5]} 46. Rf8 {[%clk 0:00:07.6]} 46... g5 {[%clk 0:00:15.7]}
47. Rh8+ {[%clk 0:00:08]} 47... Kg6 {[%clk 0:00:15.9]} 48. h5+ {[%clk
0:00:08.9]} 48... Kf5 {[%clk 0:00:14.7]} 49. Rxc8 {[%clk 0:00:09.8]} 49... Rxg3
{[%clk 0:00:08.2]} 50. Rf8# {[%clk 0:00:09.9]} 1-0